Cogmind - Beta 17.1 @@@ ROGUE MODE // 2026.09.14 @ 12:42:30 Player: TheSkyeDoctor Result: Destroyed by SS-YYG(R) with Subdweller Machine Gun Performance ------------- Evolutions (0) 0 Regions Visited (3) 600 Robots Destroyed (22) 110 Value Destroyed (425) 425 Prototype IDs (0) 0 Alien Tech Used (0) 0 Bonus (14) 14 TOTAL SCORE: 1149 Bonus ------- Follower Combat Kills 14 Cogmind --------- Core Integrity 0/250 Matter 228/300 Energy 100/100 System Corruption 0% Temperature Cool (0) Movement Core (250) Ox4 Location -10/Subcaves Parts ------- > --- POWER (1) -------- (None) > --- PROPULSION (2) --- (None) > --- UTILITY (2) ------ Medium Storage Unit > --- WEAPON (2) ------- Heavy Battle Rifle > --- INVENTORY (10) --- Ion Engine Huge Storage Unit Improved Terrain Scanner Hacking Suite Medium Laser Grenade Launcher Peak State ------------ > --- POWER ------------ Ion Engine > --- PROPULSION ------- Light Treads Light Treads > --- UTILITY ---------- Medium Storage Unit Seismic Detector > --- WEAPON ----------- Heavy Battle Rifle Battle Cannon > --- INVENTORY -------- Ion Engine Wheel Huge Storage Unit Improved Terrain Scanner Hacking Suite Medium Laser Heavy Battle Rifle Grenade Launcher [Rating: 12] Favorites ----------- Power Ion Engine Engine Ion Engine Propulsion Light Treads Treads Light Treads Wheel Wheel Utility Seismic Detector Device Seismic Detector Storage Medium Storage Unit Weapon Medium Laser Energy Gun Medium Laser Ballistic Gun Assault Rifle Ballistic Cannon Battle Cannon Build | -11 -10 -10 -10 ------- Run | Yrd Mat Min Sub Slots Evolved . | . . . . Power . | . . . . Propulsion . | . . . . Utility . | . . . . Weapon . | . . . . Parts Attached 13 | 7 1 . 5 Power 1 | 1 . . . Engine 1 | 1 . . . Core . | . . . . Reactor . | . . . . Propulsion 3 | 2 . . 1 Treads 2 | 2 . . . Leg . | . . . . Wheel 1 | . . . 1 Hover . | . . . . Flight . | . . . . Utility 3 | 2 1 . . Device 1 | 1 . . . Storage 2 | 1 1 . . Processor . | . . . . Hackware . | . . . . Protection . | . . . . Artifact . | . . . . Weapon 6 | 2 . . 4 Energy Gun 1 | 1 . . . Energy Cannon . | . . . . Ballistic Gun 3 | 1 . . 2 Ballistic Cannon 2 | . . . 2 Launcher . | . . . . Special Weapon . | . . . . Impact Weapon . | . . . . Slashing Weapon . | . . . . Piercing Weapon . | . . . . Special Melee Weapon . | . . . . Unidentified Prototypes . | . . . . Parts Lost 8 | . . . 8 Power 1 | . . . 1 Propulsion 3 | . . . 3 Utility 1 | . . . 1 Weapon 3 | . . . 3 Highest Loss Streak 8 | . . . 8 To Critical Strikes . | . . . . Average Backups 6 | 1 6 8 7 Power . | . 1 1 1 Propulsion . | . 1 1 . Utility 2 | . 2 3 3 Weapon 2 | . 1 3 3 Tool/Special . | . . . . Unused Backups 8 | . 1 . 7 Power 2 | . 1 . 1 Propulsion . | . . . . Utility 3 | . . . 3 Weapon 3 | . . . 3 Tool/Special . | . . . . Average Slot Usage (%) 98 | . 100 100 96 Engine 13 | . 14 14 12 Treads 27 | . 28 28 25 Device 13 | . 14 14 13 Storage 14 | . 14 14 14 Energy Gun 12 | . 14 14 10 Ballistic Gun 14 | . 14 14 14 Ballistic Cannon 1 | . . . 3 Peak Build Rating 12 | 7 8 8 12 Average Rating 8 | 5 7 8 10 On Entrance 5 | . 7 8 8 Avg Prop Armor Cover (%) 11 | . . . 11 Naked Turns . | . . . . Heaviest Build 23 | 15 20 20 23 Greatest Support 40 | 40 40 40 40 Greatest Overweight (x) 2 | . . . 2 Average Overweight (x) . | . . . . Largest Inventory Capacity 10 | 8 10 10 10 Average Capacity 9 | 7 9 10 10 Most Carried 9 | 3 8 8 9 Average Carried 6 | 1 6 8 7 Final Capacity 10 | 8 10 10 10 Final Carried 8 | 3 8 8 6 Class Distribution -------------------- 100% | Mutant Dominant Class ---------------- Mutant | -10/Materials Mutant | -10/Mines Mutant | -10/Subcaves Resources | -11 -10 -10 -10 ----------- Run | Yrd Mat Min Sub Matter Collected 407 | 303 64 18 22 Remotely . | . . . . Salvage Created 599 | 165 191 65 178 Parts 39 | 7 16 6 10 Haulers Intercepted . | . . . . Recyclers Shooed 1 | . 1 . . Parts Field Recycled . | . . . . Retrieved Matter . | . . . . Parts Self-Destructed 3 | . . . 3 Prevented . | . . . . Parts Restored . | . . . . Kills | -11 -10 -10 -10 ------- Run | Yrd Mat Min Sub Combat Hostiles Destroyed 14 | . 5 4 5 Guns 13 | . 5 4 4 Cannons 1 | . . . 1 Classes Destroyed 8 | 2 5 . 1 Worker 1 | . 1 . . Tunneler 3 | 3 . . . Recycler 1 | 1 . . . Operator 2 | . 2 . . Watcher 1 | . 1 . . Swarmer 7 | . 3 4 . Grunt 4 | . 2 . 2 Subdweller 3 | . . . 3 Best Kill Streak 4 | 4 4 2 2 Combat Bots Only 3 | . 3 2 2 Max Kills in Single Turn 2 | 1 1 2 1 Gunslinging 1 | . . 1 . Exploded . | . . . . Melee . | . . . . Uniques/NPCs Destroyed . | . . . . Combat | -11 -10 -10 -10 -------- Run | Yrd Mat Min Sub Hostile Shots Fired 102 | . 20 24 58 Missed 22 | . 4 5 13 Hits 80 | . 16 19 45 Projectile 80 | . 16 19 45 Damage Taken 1342 | . 150 152 1040 Core 261 | . . . 261 Absorbed by Shields . | . . . . Core Remaining (%) 100 | 100 . . . Volleys Fired 51 | 11 18 6 16 Largest 2 | 2 2 2 2 Hottest 83 | 70 70 70 83 Shots Fired 98 | 22 36 12 28 Gun 92 | 22 36 12 22 Cannon 6 | . . . 6 Launcher . | . . . . Special . | . . . . Kinetic 59 | 11 18 6 24 Thermal 39 | 11 18 6 4 Explosive . | . . . . Electromagnetic . | . . . . Robot Hit Streak 9 | 5 9 7 9 Robot Miss Streak 2 | 1 2 1 1 Penetration Max . | . . . . Secondary Targets 3 | . . 2 1 Max Gunslinging Chain 1 | . . 1 1 Shots Hit Robots 71 | 16 24 9 22 Core Hits 29 | 5 12 4 8 Critical Kills 2 | . 1 . 1 Critical Parts Destroyed . | . . . . Critical Strikes 7 | 2 1 1 3 Burn 4 | 2 . 1 1 Destroy 2 | . 1 . 1 Blast 1 | . . . 1 Melee Attacks . | . . . . Impact . | . . . . Slashing . | . . . . Piercing . | . . . . Sneak Attacks . | . . . . Combat Hostiles . | . . . . Follow-up Attacks . | . . . . Damage Inflicted 1152 | 198 337 117 500 Guns 1035 | 198 337 117 383 Cannons 117 | . . . 117 Explosions . | . . . . Melee . | . . . . Ramming . | . . . . Kinetic 792 | 99 201 42 450 Thermal 360 | 99 136 75 50 Explosive . | . . . . Electromagnetic . | . . . . Impact . | . . . . Slashing . | . . . . Piercing . | . . . . Highest Corruption . | . . . . Average Corruption . | . . . . Corruption Purged . | . . . . Corruption Blocked . | . . . . Overload Shots . | . . . . Overflow Damage . | . . . . Projectiles . | . . . . Explosions . | . . . . Melee . | . . . . Knockbacks 2 | . . . 2 Impact . | . . . . Kinetic 2 | . . . 2 Secondary . | . . . . Self-Inflicted Damage . | . . . . Shots . | . . . . Rammed . | . . . . Targets Rammed . | . . . . Kicked . | . . . . Crushed . | . . . . Highest Temperature 81 | 81 63 27 . Average Temperature 25 | 36 22 11 . Received Heat Transfer 156 | . 36 . 120 Siege Activations . | . . . . Martial Activations . | . . . . Shielding Activations . | . . . . Robots Disrupted . | . . . . Combat Hostiles . | . . . . Robots Corrupted . | . . . . Combat Hostiles . | . . . . Parts Fried . | . . . . Impact Corruptions . | . . . . Robots Melted . | . . . . Combat Hostiles . | . . . . Parts Melted 2 | 1 . 1 . Heat Transferred 1369 | 444 407 296 222 Parts Sabotaged . | . . . . Parts Stolen . | . . . . Parts Stripped . | . . . . Power Chain Reactions . | . . . . Alert | -11 -10 -10 -10 ------- Run | Yrd Mat Min Sub Maximum Alert Level . | . . . . Low Security (%) 100 | 100 100 100 . Level 1 . | . . . . Level 2 . | . . . . Level 3 . | . . . . Level 4 . | . . . . Level 5 . | . . . . High Security . | . . . . Max Security . | . . . . Peak Influence 107 | 10 86 107 . Initial 27 | . . 27 . Average 21 | 1 12 50 . Influence Increases 404 | 20 152 177 55 Destroy 0b10 Robot/C 260 | . 100 120 40 Destroy 0b10 Robot/NC 40 | 20 20 . . Destroy Leader 62 | . 32 20 10 Allied During Kill 27 | . . 22 5 Disable Machine 15 | . . 15 . Influence Decreases 404 | 20 82 170 132 Entered New Map 84 | . . 43 41 Time Decay 320 | 20 82 127 91 Squads Dispatched 2 | . 2 . . Investigation . | . . . . Extermination . | . . . . Reinforcement 2 | . 2 . . Assault . | . . . . Garrison . | . . . . Intercept . | . . . . Searches Triggered . | . . . . Construction Impeded . | . . . . Haulers Reinforced . | . . . . Active Scanning Responses . | . . . . Cargo Convoy Interrupts . | . . . . Stealth | -11 -10 -10 -10 --------- Run | Yrd Mat Min Sub Distress Signals . | . . . . Communications Jammed . | . . . . Distress Signals . | . . . . Times Spotted 23 | . 10 6 7 Peak Tracking Total 5 | . 4 3 5 Tactical Retreats . | . . . . Traps | -11 -10 -10 -10 ------- Run | Yrd Mat Min Sub Traps Triggered . | . . . . Indirectly . | . . . . Trap Hack Attempts . | . . . . Triggered . | . . . . Disarmed . | . . . . Reprogrammed . | . . . . Reused . | . . . . Traps Extracted . | . . . . Installed . | . . . . Triggered . | . . . . Machines | -11 -10 -10 -10 ---------- Run | Yrd Mat Min Sub Machines Disabled 1 | . . 1 . Max in Single Turn 1 | . . 1 . Machines Repaired . | . . . . Machines Dismantled . | . . . . Machines Sabotaged . | . . . . Overloaded Fab Kills . | . . . . Hacking | -11 -10 -10 -10 --------- Run | Yrd Mat Min Sub Machines Accessed . | . . . . Terminals . | . . . . Fabricators . | . . . . Repair Stations . | . . . . Recycling Units . | . . . . Scanalyzers . | . . . . Garrison Access . | . . . . Total Hacks . | . . . . Successful . | . . . . Failed . | . . . . Catastrophic . | . . . . Database Lockouts . | . . . . Manual . | . . . . Terminals . | . . . . Fabricators . | . . . . Repair Stations . | . . . . Recycling Units . | . . . . Scanalyzers . | . . . . Garrison Access . | . . . . Terminal Hacks . | . . . . Fabricator Hacks . | . . . . Repair Station Hacks . | . . . . Recycling Unit Hacks . | . . . . Scanalyzer . | . . . . Garrison Access Hacks . | . . . . Unauthorized Hacks . | . . . . Terminals . | . . . . Fabricators . | . . . . Repair Stations . | . . . . Recycling Units . | . . . . Scanalyzers . | . . . . Garrison Access . | . . . . Data Cores Recovered . | . . . . Used . | . . . . Hacking Detections . | . . . . Full Trace Events . | . . . . Feedback Events . | . . . . Feedback Blocked . | . . . . Robot Schematics Acquired . | . . . . Robots Built . | . . . . Authchips . | . . . . Time . | . . . . Total Robot Build Rating . | . . . . Part Schematics Acquired . | . . . . Parts Built . | . . . . Authchips . | . . . . Time . | . . . . Total Part Build Rating . | . . . . Part Studies Acquired . | . . . . Parts Repaired . | . . . . Time . | . . . . Parts Recycled . | . . . . Recycled Matter . | . . . . Retrieved Matter . | . . . . Retrieved Components . | . . . . Parts Scanalyzed . | . . . . Part Schematics Acquired . | . . . . Parts Damaged . | . . . . Bothacking | -11 -10 -10 -10 ------------ Run | Yrd Mat Min Sub Used RIF Installer . | . . . . Robots Hacked . | . . . . Non-combat . | . . . . Combat . | . . . . Robot Hacks Applied . | . . . . Relay Couplers Released . | . . . . Fabnet Peak Effective % . | . . . . Robots Rewired . | . . . . Allies Hacked . | . . . . Hacks Repelled . | . . . . Allies | -11 -10 -10 -10 -------- Run | Yrd Mat Min Sub Total Allies 3 | . . 3 . Largest Group 3 | . . 3 3 Highest-Rated Group 40 | . . 40 40 Highest-Rated Ally 16 | . . 16 16 Total Orders . | . . . . Ally Attacks 30 | . . 5 25 Total Damage 242 | . . 28 214 Kills 2 | . . 2 . Allies Corrupted . | . . . . Allies Melted . | . . . . Intel | -11 -10 -10 -10 ------- Run | Yrd Mat Min Sub Active Infowar (turns) 1437 | 60 666 303 408 Seismic 1437 | 60 666 303 408 Robot Analysis Total . | . . . . Derelict Logs Recovered 2 | . . 1 1 Drone Launches . | . . . . Drone Recoveries . | . . . . Exploration | -11 -10 -10 -10 ------------- Run | Yrd Mat Min Sub Turns Passed 1565 | 168 666 303 428 Spaces Moved 791 | 80 314 179 218 Core 5 | 5 . . . Treads 778 | 75 314 179 210 Legs . | . . . . Wheels 8 | . . . 8 Hover . | . . . . Flight . | . . . . Fastest Speed 50 | 50 160 160 95 Average Speed 158 | 153 160 160 158 Slowest Speed 240 | 160 160 160 240 Overloaded Moves . | . . . . Propulsion Burnouts . | . . . . Robots Hopped . | . . . . Potential Cave-ins . | . . . . Cave-ins Triggered . | . . . . Exploration Rate (%) 26 | 3 46 36 21 Regions Visited 3 Branch Regions 2 Pre-discovered Areas . | . . . . Known Exits Taken . | . . . . Unknown Exits Taken 3 | 1 1 1 . Scrap Searched . | . . . . Spaces Dug . | . . . . Terrain Destroyed . | . . . . Melee . | . . . . Projectile . | . . . . AOE . | . . . . Terrain Rammed . | . . . . Walls Destroyed . | . . . . Machines Disabled . | . . . . Actions | -11 -10 -10 -10 --------- Run | Yrd Mat Min Sub Total 1000 | 100 442 184 274 Wait 131 | . 102 . 29 Move 788 | 79 313 178 218 Hop . | . . . . Pick Up 11 | 3 6 . 2 Fast Attach 8 | 7 . . 1 Attach 3 | . . . 3 Detach 1 | . . . 1 Swap 2 | . 1 . 1 Drop 5 | . 2 . 3 Fire 51 | 11 18 6 16 Melee . | . . . . Ram . | . . . . Kick . | . . . . Crush . | . . . . Escape Stasis . | . . . . Rewire . | . . . . Trap . | . . . . Miscellaneous . | . . . . Route ------- -11/Scrapyard -10/Materials (discovered 2 exits: [*Mat] / [*Min]) -10/Mines (discovered 2 exits: [*Mat] / [*Sub]) -10/Subcaves History --------- Turn | Location | Event 60 | -11/Scrapyard | Discovered new exit (range 15) 169 | -11/Scrapyard | Entered Materials 303 | -10/Materials | Build established: Mutant 480 | -10/Materials | Discovered new exit (range 3) 731 | -10/Materials | Discovered new exit (range 8) 835 | -10/Materials | Entered Mines 911 | -10/Mines | Assisted by bots powering up and referring to "LRC-V3" 1059 | -10/Mines | Learned Materials terminal intel 1071 | -10/Mines | Discovered new exit (range 6) 1114 | -10/Mines | Discovered new exit (range 6) 1138 | -10/Mines | Entered Subcaves 1138 | -10/Subcaves | Accompanied by 3 allies 1139 | -10/Subcaves | Shifting Twisted Machinery released Sub. Power Source 1139 | -10/Subcaves | Approached by a straggling Scientist 1141 | -10/Subcaves | Shifting Twisted Machinery released Hvy. Battle Rifle 1169 | -10/Subcaves | Learned 2 Materials zone layouts 1508 | -10/Subcaves | A Subdweller sparked back to life 1508 | -10/Subcaves | A Subdweller sparked back to life 1508 | -10/Subcaves | A Subdweller sparked back to life 1556 | -10/Subcaves | Core integrity fell below 50% 1562 | -10/Subcaves | Core integrity fell below 20% 1566 | -10/Subcaves | Destroyed by SS-YYG(R) with Subdweller Machine Gun Last Messages --------------- 01540_ Battle Cannon destroyed. 01542_ XM-F70(O) collects matter. 01545_ FQ-9U4(R) affixes Scrap Shield Fragment to Scrap Shield. 01546_ FQ-9U4(R) knocked back. 01546_ Seismic Detector destroyed. 01548_ XM-F70(O) collects matter. 01550_ Battle Cannon destroyed. 01552_ Wheel destroyed. 01553_ XM-F70(O) puts together Battle Cannon. 01556_ PN-1T2(R) suffers critical hit (Destroy). 01556_ PN-1T2(R) destroyed. 01558_ Hvy. Battle Rifle destroyed. 01558_ 51-HRR(R) affixes Scrap Shield Fragment to Scrap Shield. 01560_ XM-F70(O) collects matter. 01562_ FQ-9U4(R) affixes Scrap Shield Fragment to Scrap Shield. 01564_ XM-F70(O) collects matter. 01565_ 51-HRR(R) destroyed. Map ----- +----------------------------------------------------+ | ?????????????????????????????????????????????????? | | ?????????????????????????????????????????????????? | | ?????????????????????????????????????????????????? | | ?????????????????????????????????????????????????? | | ?????????????????????????????????????????????????? | | ?????????????????????????????????????????????????? | | ?????????????????????????????????????????????????? | | ????????? ???????????????????????????????????????? | | ??????????"??????###????######????????#??????????? | | ??????????? ???## ???## ##?????? #??????????? | | ????????????# ?## #???# #????? #??????????? | | ????????? ""#" # ##??# #????# #??????????? | | ?????????"" "" ##?# ##??# #???????????? | | ?????????# "" ## #### ### #???????????? | | ????????# "??## ### [ ###?????????? | | ??????????????# " ## ####??????? | | ?????????????##" ### ##?????? | | ?????????????#"" "* =#?# = #?????? | | ?????????????# &!=[ ### ##????? | | ?????????????# ###"## = # ##### ?????? | | ?????????????# ????## # #?????? #??????? | | ????????????? ????# # #####? ##?????? | | ???????????? ?? ?## # ] ## #?????? | | ???????????##??? ?# ## [ #???????? | | ????????????????# # #;R #???????? | | ????????????????# %@ ! ##??????? | | ????????????????# &*! #??????? | | ????????????????# OR& ## #?????? | | ????????????????# ##? ##?????? | | ?????????????? ###### ##?###??????? | | ???????????? #?????## #??????????? | | ???????????? ???????# [ ######??????? | | ???????????? ????????## #### ##?????? | | ???????????? #??????????##### ## ### #?????? | | ????????????????????????????## #### % #?????? | | ?????????????????????????????# ??## %#?????? | | ?????????????????????????????# ??## ##?????? | | ?????????????????????????????# ??## #??????? | | ?????????????????????????????# ?## ##??????? | | ?????????????????????????????# #### #???????? | | ?????????????????????????????? #??# ##???????? | | ?????????????????????????????? #### ###????????? | | ??????????????????????????????# ## ####???????? | | ???????????????????????????????# # ###?????? | | ????????????????????????????????## #?????? | | ?????????????????????????????????## #?????? | | ?????????????????????????????????## ##????? | | ?????????????????????????????????# #????? | | ?????????????????????????????????## #????? | | ??????????????????????????????????## #????? | +----------------------------------------------------+ Best States ------------- Heat Dissipation 25 Energy Generation 10 Energy Capacity 250 Matter Stores 300 Matter Capacity 300 Sight Range 16 Terrain Scan Density 10 Evasion (%) 40 Recoil Reduction 2 Item Schematics ----------------- None Robot Schematics ------------------ None Fabricated ------------ Nothing Repaired ---------- Nothing Studied --------- None Alien Tech Used ----------------- None Achievements -------------- None Challenges ------------ None Game ------ Seed PiercingRingImpeller Manual? 0 Play Time 00:07:57 Cumulative 210.7 hours Start 2026.09.14 @ 12:36:35 End 2026.09.14 @ 12:42:30 Sessions 1 Manual Loads 0 Difficulty Rogue Special Mode None Game No. 410 Rogue 410 Adventurer 0 Explorer 0 Win Type - Total 2 Types 2/0/0/0/0/0/0/0/0/0 Lore% 62 Gallery% 62 Achievement% 48 Wizard Run 0 Options --------- Layout 2 ASCII 0 Keyboard 1 Movement Arrows Keybinds 0 Fullscreen 1 Font 24/Smallcaps Map View 50x44 Zoom Use 0% Tactical HUD 1 Map Filters NONE Filters NONE Steam 1 RUN: a516e422-dd2d-424f-97ed-de61dcc328f9